[Event "Early-Titled-Tuesday-Blitz-September-12-2023"]
[Site "Chess.com"]
[Date "2023.09.12"]
[Round "9"]
[White "h4parah5"]
[Black "Diaschess88"]
[Result "1-0"]
[WhiteElo "2940"]
[BlackElo "2688"]
[TimeControl "180+1"]
[EndTime "9:44:36 PDT"]
[Termination "h4parah5 won on time"]

1. d4 {[%clk 0:03:00.9]} 1... Nf6 {[%clk 0:02:58.9]} 2. Nf3 {[%clk 0:03:01]}
2... g6 {[%clk 0:02:59]} 3. c4 {[%clk 0:03:00.8]} 3... Bg7 {[%clk 0:02:59.1]} 4.
Nc3 {[%clk 0:03:01.7]} 4... d5 {[%clk 0:02:59.1]} 5. Qb3 {[%clk 0:02:59.8]} 5...
dxc4 {[%clk 0:02:52.5]} 6. Qxc4 {[%clk 0:03:00.7]} 6... O-O {[%clk 0:02:52.8]}
7. e4 {[%clk 0:02:59.2]} 7... Nc6 {[%clk 0:02:53.4]} 8. Be2 {[%clk 0:02:57.1]}
8... e5 {[%clk 0:02:53.7]} 9. d5 {[%clk 0:02:57.4]} 9... Nd4 {[%clk 0:02:54.3]}
10. Nxd4 {[%clk 0:02:57.7]} 10... exd4 {[%clk 0:02:55.2]} 11. Qxd4 {[%clk
0:02:58.2]} 11... c6 {[%clk 0:02:56.1]} 12. Qc4 {[%clk 0:02:57.6]} 12... b5
{[%clk 0:02:56.6]} 13. Qxc6 {[%clk 0:02:58.2]} 13... Bd7 {[%clk 0:02:57.3]} 14.
Qd6 {[%clk 0:02:58.7]} 14... Re8 {[%clk 0:02:56.7]} 15. O-O {[%clk 0:02:54.8]}
15... Rc8 {[%clk 0:02:49.5]} 16. f3 {[%clk 0:02:48.4]} 16... b4 {[%clk
0:02:30.6]} 17. Qxb4 {[%clk 0:02:44.5]} 17... Nh5 {[%clk 0:02:21.1]} 18. f4
{[%clk 0:02:17.8]} 18... Qh4 {[%clk 0:02:12.5]} 19. Bxh5 {[%clk 0:02:11.4]}
19... Qxh5 {[%clk 0:02:13.4]} 20. e5 {[%clk 0:02:08.8]} 20... Qf5 {[%clk
0:01:51.1]} 21. Qe4 {[%clk 0:02:02.6]} 21... Qxe4 {[%clk 0:01:41.9]} 22. Nxe4
{[%clk 0:02:03.5]} 22... Rc2 {[%clk 0:01:42.1]} 23. Rf2 {[%clk 0:02:00.2]} 23...
Rec8 {[%clk 0:01:40.5]} 24. Be3 {[%clk 0:01:59.3]} 24... Rxf2 {[%clk 0:01:37.3]}
25. Bxf2 {[%clk 0:01:58.1]} 25... Rc2 {[%clk 0:01:36.9]} 26. Nc5 {[%clk
0:01:53]} 26... Bf5 {[%clk 0:01:32.3]} 27. b4 {[%clk 0:01:51.2]} 27... g5 {[%clk
0:01:29]} 28. Rd1 {[%clk 0:01:38.8]} 28... Bg4 {[%clk 0:01:00.8]} 29. Re1 {[%clk
0:01:37.7]} 29... gxf4 {[%clk 0:00:59.7]} 30. d6 {[%clk 0:01:36.8]} 30... Rxa2
{[%clk 0:00:49.5]} 31. h3 {[%clk 0:01:35.4]} 31... Bf5 {[%clk 0:00:46.1]} 32.
Rd1 {[%clk 0:01:31.8]} 32... Bxe5 {[%clk 0:00:18.7]} 33. d7 {[%clk 0:01:30.4]}
33... Bxd7 {[%clk 0:00:16]} 34. Nxd7 {[%clk 0:01:31.3]} 34... Bc3 {[%clk
0:00:15.4]} 35. Bc5 {[%clk 0:01:22.2]} 35... Rb2 {[%clk 0:00:13.7]} 36. Bd4
{[%clk 0:01:18.9]} 36... Rb3 {[%clk 0:00:04.6]} 37. Nc5 {[%clk 0:01:08.4]} 37...
Bxd4+ {[%clk 0:00:02.5]} 38. Rxd4 {[%clk 0:01:09.3]} 38... Rb1+ {[%clk
0:00:03.1]} 39. Kf2 {[%clk 0:01:09.1]} 1-0

[Event "Early-Titled-Tuesday-Blitz-September-12-2023"]
[Site "Chess.com"]
[Date "2023.09.12"]
[Round "9"]
[White "Abund"]
[Black "Pingah9"]
[Result "1-0"]
[WhiteElo "2747"]
[BlackElo "2572"]
[TimeControl "180+1"]
[EndTime "9:44:36 PDT"]
[Termination "Abund won by resignation"]

1. e4 {[%clk 0:03:00.9]} 1... c5 {[%clk 0:02:58.8]} 2. Nf3 {[%clk 0:03:01.2]}
2... Nc6 {[%clk 0:02:58.9]} 3. Bb5 {[%clk 0:03:01.6]} 3... g6 {[%clk 0:02:58]}
4. O-O {[%clk 0:03:02.1]} 4... Bg7 {[%clk 0:02:57.5]} 5. Re1 {[%clk 0:03:02.9]}
5... Nf6 {[%clk 0:02:56.5]} 6. c3 {[%clk 0:02:57.8]} 6... a6 {[%clk 0:02:49.6]}
7. Bxc6 {[%clk 0:02:49.5]} 7... dxc6 {[%clk 0:02:48.7]} 8. h3 {[%clk 0:02:48.4]}
8... O-O {[%clk 0:02:42]} 9. d4 {[%clk 0:02:48.8]} 9... cxd4 {[%clk 0:02:41.4]}
10. cxd4 {[%clk 0:02:49.7]} 10... Qc7 {[%clk 0:02:32.3]} 11. Nc3 {[%clk
0:02:45.8]} 11... Rd8 {[%clk 0:02:30.2]} 12. Qc2 {[%clk 0:02:42.1]} 12... c5
{[%clk 0:02:09.7]} 13. d5 {[%clk 0:01:58.9]} 13... b5 {[%clk 0:02:07.6]} 14. Be3
{[%clk 0:01:54.9]} 14... e6 {[%clk 0:02:04.8]} 15. d6 {[%clk 0:01:45.5]} 15...
Qb6 {[%clk 0:01:52.3]} 16. Bg5 {[%clk 0:01:41.8]} 16... h6 {[%clk 0:01:43.7]}
17. Bxf6 {[%clk 0:01:41]} 17... Bxf6 {[%clk 0:01:44.6]} 18. e5 {[%clk
0:01:41.6]} 18... Bg7 {[%clk 0:01:45.1]} 19. Ne4 {[%clk 0:01:39.4]} 19... c4
{[%clk 0:01:41.5]} 20. b3 {[%clk 0:01:37.4]} 20... cxb3 {[%clk 0:01:27.6]} 21.
axb3 {[%clk 0:01:35.8]} 21... Bb7 {[%clk 0:01:27.3]} 22. Rac1 {[%clk 0:01:17.4]}
22... Rac8 {[%clk 0:01:24]} 23. Qd3 {[%clk 0:01:17.9]} 23... Bd5 {[%clk
0:01:12.3]} 24. b4 {[%clk 0:01:08.2]} 24... Rc4 {[%clk 0:00:59.5]} 25. Rxc4
{[%clk 0:00:54.2]} 25... bxc4 {[%clk 0:01:00.4]} 26. Qd2 {[%clk 0:00:43.3]}
26... Rb8 {[%clk 0:00:58.9]} 27. Nf6+ {[%clk 0:00:36.4]} 27... Bxf6 {[%clk
0:00:58.5]} 28. exf6 {[%clk 0:00:36.8]} 28... Kh7 {[%clk 0:00:58.8]} 29. Ne5
{[%clk 0:00:34.9]} 29... Qxb4 {[%clk 0:00:29.5]} 30. Qxb4 {[%clk 0:00:33.4]}
30... Rxb4 {[%clk 0:00:30.4]} 31. d7 {[%clk 0:00:34]} 31... Rb8 {[%clk
0:00:19.6]} 32. Nxf7 {[%clk 0:00:34]} 1-0

[Event "Early-Titled-Tuesday-Blitz-September-12-2023"]
[Site "Chess.com"]
[Date "2023.09.12"]
[Round "9"]
[White "LeoLV10"]
[Black "Zampronha1971"]
[Result "1-0"]
[WhiteElo "2489"]
[BlackElo "2333"]
[TimeControl "180+1"]
[EndTime "9:44:38 PDT"]
[Termination "LeoLV10 won by resignation"]

1. e4 {[%clk 0:02:56.3]} 1... c5 {[%clk 0:02:58.5]} 2. Nf3 {[%clk 0:02:55.4]}
2... e6 {[%clk 0:02:59.1]} 3. d4 {[%clk 0:02:54.7]} 3... cxd4 {[%clk 0:03:00]}
4. Nxd4 {[%clk 0:02:55.6]} 4... Nc6 {[%clk 0:03:00.5]} 5. Nc3 {[%clk 0:02:51.8]}
5... Qc7 {[%clk 0:03:00.5]} 6. a3 {[%clk 0:02:48.1]} 6... a6 {[%clk 0:02:59.5]}
7. f4 {[%clk 0:02:46.6]} 7... d6 {[%clk 0:02:52.1]} 8. Be3 {[%clk 0:02:46.5]}
8... Nf6 {[%clk 0:02:52]} 9. Be2 {[%clk 0:02:46.6]} 9... Be7 {[%clk 0:02:52.5]}
10. Bf3 {[%clk 0:02:47]} 10... O-O {[%clk 0:02:50.8]} 11. O-O {[%clk 0:02:47.6]}
11... Rb8 {[%clk 0:02:47.1]} 12. Qe1 {[%clk 0:02:47.7]} 12... Nxd4 {[%clk
0:02:44.5]} 13. Bxd4 {[%clk 0:02:48.6]} 13... b6 {[%clk 0:02:44.4]} 14. Qg3
{[%clk 0:02:48.2]} 14... Bb7 {[%clk 0:02:43]} 15. Rae1 {[%clk 0:02:46.3]} 15...
Ba8 {[%clk 0:02:13.6]} 16. Kh1 {[%clk 0:02:44.9]} 16... Ne8 {[%clk 0:02:09.7]}
17. e5 {[%clk 0:02:39]} 17... Bxf3 {[%clk 0:02:04.1]} 18. Rxf3 {[%clk
0:02:38.7]} 18... dxe5 {[%clk 0:02:02.6]} 19. Bxe5 {[%clk 0:02:27.2]} 19... Bd6
{[%clk 0:02:00.4]} 20. Bd4 {[%clk 0:02:27.2]} 20... Bc5 {[%clk 0:02:00.1]} 21.
Be5 {[%clk 0:02:18.9]} 21... Bd6 {[%clk 0:02:00.1]} 22. Ref1 {[%clk 0:02:01.5]}
22... Bxe5 {[%clk 0:01:59]} 23. fxe5 {[%clk 0:02:02.4]} 23... Rd8 {[%clk
0:01:58.4]} 24. h3 {[%clk 0:01:58.6]} 24... f5 {[%clk 0:01:34.8]} 25. Ne4 {[%clk
0:01:34.6]} 25... Qxc2 {[%clk 0:01:17.5]} 26. Ng5 {[%clk 0:01:33.7]} 26... Qc6
{[%clk 0:01:09.6]} 27. Qh4 {[%clk 0:01:32.5]} 27... h6 {[%clk 0:01:08.2]} 28.
Nxe6 {[%clk 0:01:31.4]} 28... Qxe6 {[%clk 0:01:06]} 29. Qxd8 {[%clk 0:01:31.2]}
29... b5 {[%clk 0:01:03.5]} 30. Qd3 {[%clk 0:01:24.3]} 30... Qxe5 {[%clk
0:01:01.2]} 31. Rxf5 {[%clk 0:01:22.3]} 31... Rxf5 {[%clk 0:01:01.3]} 32. Rxf5
{[%clk 0:01:22]} 32... Qe1+ {[%clk 0:01:00.9]} 33. Rf1 {[%clk 0:01:21.7]} 33...
Qe6 {[%clk 0:00:58.1]} 34. Qf5 {[%clk 0:01:21.6]} 34... Qe7 {[%clk 0:00:51.7]}
35. Qd5+ {[%clk 0:01:20.4]} 35... Kh7 {[%clk 0:00:50.5]} 36. Qf7 {[%clk
0:01:14.6]} 36... Qe2 {[%clk 0:00:47.4]} 37. Qf2 {[%clk 0:01:09.4]} 37... Qe7
{[%clk 0:00:45]} 38. Re1 {[%clk 0:01:09.4]} 38... Qd7 {[%clk 0:00:43.2]} 39.
Qc2+ {[%clk 0:01:08.3]} 39... Kg8 {[%clk 0:00:42]} 40. Qe4 {[%clk 0:01:07.6]}
40... Nf6 {[%clk 0:00:41.2]} 41. Qe6+ {[%clk 0:01:07.4]} 41... Kf8 {[%clk
0:00:38.1]} 42. Qxd7 {[%clk 0:01:05.8]} 42... Nxd7 {[%clk 0:00:39]} 43. Re6
{[%clk 0:01:06]} 43... Nc5 {[%clk 0:00:35.2]} 44. Rc6 {[%clk 0:01:03.4]} 44...
Nd3 {[%clk 0:00:33.3]} 45. b4 {[%clk 0:01:03.8]} 45... Nb2 {[%clk 0:00:32.5]}
46. Rxa6 {[%clk 0:01:02.9]} 46... Nc4 {[%clk 0:00:33.1]} 47. a4 {[%clk 0:00:59]}
47... bxa4 {[%clk 0:00:32.1]} 48. Rxa4 {[%clk 0:00:59.7]} 48... Ke7 {[%clk
0:00:32.4]} 49. Ra6 {[%clk 0:00:59.7]} 49... Nd6 {[%clk 0:00:27.1]} 50. Ra7+
{[%clk 0:00:59.2]} 1-0

[Event "Early-Titled-Tuesday-Blitz-September-12-2023"]
[Site "Chess.com"]
[Date "2023.09.12"]
[Round "9"]
[White "artooon"]
[Black "Zhigalko_Sergei"]
[Result "1-0"]
[WhiteElo "3045"]
[BlackElo "2884"]
[TimeControl "180+1"]
[EndTime "9:44:42 PDT"]
[Termination "artooon won on time"]

1. e4 {[%clk 0:03:00.9]} 1... c5 {[%clk 0:03:00]} 2. Nf3 {[%clk 0:03:01]} 2...
Nc6 {[%clk 0:03:00.6]} 3. d4 {[%clk 0:03:01]} 3... cxd4 {[%clk 0:03:01.5]} 4.
Nxd4 {[%clk 0:03:01.9]} 4... Nf6 {[%clk 0:03:02]} 5. Nc3 {[%clk 0:03:02.1]} 5...
e5 {[%clk 0:03:02.5]} 6. Ndb5 {[%clk 0:03:02.4]} 6... d6 {[%clk 0:03:03.1]} 7.
Nd5 {[%clk 0:03:03]} 7... Nxd5 {[%clk 0:03:03.2]} 8. exd5 {[%clk 0:03:03.9]}
8... Nb8 {[%clk 0:03:03.5]} 9. c4 {[%clk 0:03:04.6]} 9... Be7 {[%clk 0:03:04.1]}
10. Be2 {[%clk 0:03:04.8]} 10... O-O {[%clk 0:03:02.7]} 11. O-O {[%clk
0:03:05.2]} 11... a6 {[%clk 0:03:02.3]} 12. Nc3 {[%clk 0:03:05.5]} 12... f5
{[%clk 0:03:03]} 13. b4 {[%clk 0:03:04.2]} 13... Nd7 {[%clk 0:03:02]} 14. a4
{[%clk 0:03:00.7]} 14... Bf6 {[%clk 0:02:32.2]} 15. Ra3 {[%clk 0:02:56.4]} 15...
e4 {[%clk 0:02:27.9]} 16. a5 {[%clk 0:02:44.4]} 16... Be5 {[%clk 0:02:04.4]} 17.
f4 {[%clk 0:02:27.2]} 17... exf3 {[%clk 0:02:00.8]} 18. Rxf3 {[%clk 0:02:27.3]}
18... f4 {[%clk 0:01:26.7]} 19. Na4 {[%clk 0:02:18.2]} 19... g5 {[%clk
0:01:20.9]} 20. Rf1 {[%clk 0:02:17.8]} 20... Rb8 {[%clk 0:01:08.7]} 21. Kh1
{[%clk 0:01:56.2]} 21... Nf6 {[%clk 0:00:50.3]} 22. c5 {[%clk 0:01:43]} 22...
Bf5 {[%clk 0:00:35]} 23. Nb6 {[%clk 0:01:34.7]} 23... Qe8 {[%clk 0:00:13.4]} 24.
Nc4 {[%clk 0:01:21.8]} 24... Rd8 {[%clk 0:00:13]} 25. Nxe5 {[%clk 0:00:50.2]}
25... Qxe5 {[%clk 0:00:12.8]} 26. Bc4 {[%clk 0:00:50.7]} 26... Ne4 {[%clk
0:00:09.8]} 27. Rb3 {[%clk 0:00:39.4]} 1-0

[Event "Early-Titled-Tuesday-Blitz-September-12-2023"]
[Site "Chess.com"]
[Date "2023.09.12"]
[Round "9"]
[White "Young_Catalan_Player09"]
[Black "KatakuriDono"]
[Result "1/2-1/2"]
[WhiteElo "2446"]
[BlackElo "2338"]
[TimeControl "180+1"]
[EndTime "9:44:43 PDT"]
[Termination "Game drawn by repetition"]

1. d4 {[%clk 0:03:00.9]} 1... d5 {[%clk 0:02:58.7]} 2. Nf3 {[%clk 0:03:01.3]}
2... Nf6 {[%clk 0:02:58.8]} 3. c4 {[%clk 0:02:52.6]} 3... dxc4 {[%clk
0:02:59.7]} 4. Qa4+ {[%clk 0:02:52.2]} 4... c6 {[%clk 0:02:55.6]} 5. Qxc4 {[%clk
0:02:52.1]} 5... Be6 {[%clk 0:02:52.9]} 6. Qc2 {[%clk 0:02:49.7]} 6... g6 {[%clk
0:02:49.2]} 7. Nc3 {[%clk 0:02:49.7]} 7... Bg7 {[%clk 0:02:44.9]} 8. g3 {[%clk
0:02:48.6]} 8... h6 {[%clk 0:02:43]} 9. Bg2 {[%clk 0:02:48.8]} 9... O-O {[%clk
0:02:40.6]} 10. O-O {[%clk 0:02:48.4]} 10... Na6 {[%clk 0:02:37.9]} 11. h3
{[%clk 0:02:40.9]} 11... Qc8 {[%clk 0:02:27]} 12. Kh2 {[%clk 0:02:36.9]} 12...
Rd8 {[%clk 0:02:27]} 13. e4 {[%clk 0:02:35.9]} 13... Nb4 {[%clk 0:02:09.2]} 14.
Qe2 {[%clk 0:02:33.6]} 14... b5 {[%clk 0:02:02.4]} 15. b3 {[%clk 0:02:29.6]}
15... c5 {[%clk 0:01:50.6]} 16. Nxb5 {[%clk 0:02:13.4]} 16... cxd4 {[%clk
0:01:49.4]} 17. Nbxd4 {[%clk 0:02:13.6]} 17... Bd7 {[%clk 0:01:42.2]} 18. Ba3
{[%clk 0:02:11.7]} 18... a5 {[%clk 0:01:37.9]} 19. Rac1 {[%clk 0:02:09.4]} 19...
Qb8 {[%clk 0:01:31.8]} 20. e5 {[%clk 0:02:08.1]} 20... Nfd5 {[%clk 0:01:25.5]}
21. e6 {[%clk 0:02:07.9]} 21... Be8 {[%clk 0:01:16.1]} 22. exf7+ {[%clk
0:02:04]} 22... Bxf7 {[%clk 0:01:15.5]} 23. Ne5 {[%clk 0:02:04.5]} 23... Qxe5
{[%clk 0:01:08.2]} 24. Qxe5 {[%clk 0:01:45.4]} 24... Bxe5 {[%clk 0:01:07.9]} 25.
Nc6 {[%clk 0:01:31.4]} 25... Nxc6 {[%clk 0:01:07]} 26. Rxc6 {[%clk 0:01:32.3]}
26... Rac8 {[%clk 0:01:02.9]} 27. Rfc1 {[%clk 0:01:30.5]} 27... Nc3 {[%clk
0:00:58.1]} 28. Rxc8 {[%clk 0:01:12.4]} 28... Rxc8 {[%clk 0:00:58]} 29. Bxe7
{[%clk 0:01:13.3]} 29... Re8 {[%clk 0:00:52.5]} 30. Ba3 {[%clk 0:01:11.1]} 30...
Nxa2 {[%clk 0:00:50.7]} 31. Rc5 {[%clk 0:01:09.8]} 31... Bxb3 {[%clk 0:00:48.6]}
32. Rxa5 {[%clk 0:01:08.4]} 32... Nc3 {[%clk 0:00:45.5]} 33. Bb2 {[%clk
0:01:06.3]} 33... Bh8 {[%clk 0:00:38.4]} 34. Bxc3 {[%clk 0:01:00.6]} 34... Bxc3
{[%clk 0:00:37.7]} 35. Ra3 {[%clk 0:01:01.1]} 35... Rb8 {[%clk 0:00:36.6]} 36.
Rxb3 {[%clk 0:01:01.3]} 36... Rxb3 {[%clk 0:00:36.8]} 37. Bd5+ {[%clk
0:01:01.5]} 37... Kg7 {[%clk 0:00:37.5]} 38. Bxb3 {[%clk 0:01:02.4]} 38... Kf6
{[%clk 0:00:36.1]} 39. Kg2 {[%clk 0:01:02.2]} 39... Ke5 {[%clk 0:00:36.3]} 40.
Bc2 {[%clk 0:01:01.2]} 40... g5 {[%clk 0:00:36.6]} 41. Kf3 {[%clk 0:01:01.8]}
41... Bd4 {[%clk 0:00:36.9]} 42. Ke2 {[%clk 0:01:00.3]} 42... h5 {[%clk
0:00:34.3]} 43. Bg6 {[%clk 0:00:59.1]} 43... h4 {[%clk 0:00:34.5]} 44. gxh4
{[%clk 0:00:59.1]} 44... gxh4 {[%clk 0:00:34.8]} 45. Kf3 {[%clk 0:00:59.5]}
45... Kf6 {[%clk 0:00:34.5]} 46. Bd3 {[%clk 0:01:00]} 46... Kg5 {[%clk
0:00:33.8]} 47. Kg2 {[%clk 0:00:59.5]} 47... Kf4 {[%clk 0:00:34.1]} 48. Be2
{[%clk 0:00:58.6]} 48... Bc5 {[%clk 0:00:34.3]} 49. Bg4 {[%clk 0:00:59.5]} 49...
Bd4 {[%clk 0:00:34.7]} 50. f3 {[%clk 0:00:59.9]} 50... Bc5 {[%clk 0:00:35.1]}
51. Kf1 {[%clk 0:01:00.8]} 51... Bd4 {[%clk 0:00:35.7]} 52. Ke2 {[%clk
0:01:01.7]} 52... Bc5 {[%clk 0:00:35.8]} 53. Kd1 {[%clk 0:01:02.6]} 53... Be3
{[%clk 0:00:36.2]} 54. Kc2 {[%clk 0:01:03.5]} 54... Bf2 {[%clk 0:00:36.4]} 55.
Kb2 {[%clk 0:01:04.4]} 55... Bg3 {[%clk 0:00:36.8]} 56. Kb3 {[%clk 0:01:05.3]}
56... Bf2 {[%clk 0:00:37.4]} 57. Kc4 {[%clk 0:01:06.2]} 57... Bg3 {[%clk
0:00:38.1]} 58. Kb5 {[%clk 0:01:07.1]} 58... Bf2 {[%clk 0:00:38.7]} 59. Kc6
{[%clk 0:01:08]} 59... Bg3 {[%clk 0:00:39.3]} 60. Kc7 {[%clk 0:01:08.9]} 60...
Bf2 {[%clk 0:00:40]} 61. Kc8 {[%clk 0:01:09.8]} 61... Bg3 {[%clk 0:00:40.6]} 62.
Kd8 {[%clk 0:01:10.7]} 62... Bf2 {[%clk 0:00:41.2]} 63. Kc8 {[%clk 0:01:11.6]}
63... Bg3 {[%clk 0:00:41.9]} 64. Kb7 {[%clk 0:01:12.5]} 64... Bf2 {[%clk
0:00:42.2]} 65. Ka8 {[%clk 0:01:13.4]} 65... Bg3 {[%clk 0:00:41.7]} 66. Kb7
{[%clk 0:01:14.3]} 66... Bf2 {[%clk 0:00:42]} 67. Kc8 {[%clk 0:01:15.2]} 1/2-1/2

[Event "Early-Titled-Tuesday-Blitz-September-12-2023"]
[Site "Chess.com"]
[Date "2023.09.12"]
[Round "9"]
[White "turayev_shahruh17"]
[Black "mamey78"]
[Result "1-0"]
[WhiteElo "2819"]
[BlackElo "2612"]
[TimeControl "180+1"]
[EndTime "9:44:49 PDT"]
[Termination "turayev_shahruh17 won by resignation"]

1. e4 {[%clk 0:03:00.1]} 1... e5 {[%clk 0:02:58.2]} 2. Nc3 {[%clk 0:03:01]} 2...
Nc6 {[%clk 0:02:57.7]} 3. Bc4 {[%clk 0:03:00.5]} 3... Nf6 {[%clk 0:02:57.9]} 4.
d3 {[%clk 0:03:00]} 4... Bc5 {[%clk 0:02:58.2]} 5. f4 {[%clk 0:02:59.3]} 5... d6
{[%clk 0:02:58.6]} 6. Nf3 {[%clk 0:02:57.2]} 6... a6 {[%clk 0:02:59]} 7. f5
{[%clk 0:02:51.6]} 7... Na5 {[%clk 0:02:55.9]} 8. Qe2 {[%clk 0:02:50.9]} 8... c6
{[%clk 0:02:54.8]} 9. Be3 {[%clk 0:02:48.9]} 9... Qe7 {[%clk 0:02:52.6]} 10.
Bxc5 {[%clk 0:02:47.5]} 10... dxc5 {[%clk 0:02:53.5]} 11. O-O {[%clk 0:02:47.5]}
11... b5 {[%clk 0:02:48.7]} 12. Bb3 {[%clk 0:02:47.3]} 12... O-O {[%clk
0:02:43.1]} 13. Nd1 {[%clk 0:02:39.4]} 13... c4 {[%clk 0:02:34.1]} 14. dxc4
{[%clk 0:02:38.6]} 14... b4 {[%clk 0:02:34.1]} 15. Kh1 {[%clk 0:02:29.3]} 15...
Bb7 {[%clk 0:02:28]} 16. Nf2 {[%clk 0:02:04.5]} 16... Rad8 {[%clk 0:02:24.8]}
17. g4 {[%clk 0:02:01.5]} 17... c5 {[%clk 0:02:10.8]} 18. g5 {[%clk 0:02:00.7]}
18... Nh5 {[%clk 0:02:07.7]} 19. Qe3 {[%clk 0:01:50.8]} 19... Rd4 {[%clk
0:01:54.9]} 20. Nxd4 {[%clk 0:01:45.4]} 20... exd4 {[%clk 0:01:55.8]} 21. Qf3
{[%clk 0:01:44.7]} 21... g6 {[%clk 0:01:54.5]} 22. f6 {[%clk 0:01:41]} 22... Qe5
{[%clk 0:01:51.5]} 23. Rae1 {[%clk 0:01:36.8]} 23... Qxg5 {[%clk 0:01:48.9]} 24.
Nd3 {[%clk 0:01:32.7]} 24... Re8 {[%clk 0:01:42]} 25. Ba4 {[%clk 0:01:30.4]}
25... Re6 {[%clk 0:01:40]} 26. Rg1 {[%clk 0:01:24.5]} 26... Qxf6 {[%clk
0:01:38.3]} 27. Qxf6 {[%clk 0:01:23.7]} 27... Nxf6 {[%clk 0:01:37.9]} 28. Nxc5
{[%clk 0:01:23.3]} 28... Rxe4 {[%clk 0:01:34.2]} 29. Nxb7 {[%clk 0:01:20.6]}
29... Nxb7 {[%clk 0:01:32.1]} 30. Rxe4 {[%clk 0:01:16.1]} 30... Nxe4 {[%clk
0:01:33]} 31. Bc6 {[%clk 0:01:17]} 31... Nbc5 {[%clk 0:01:33.1]} 32. Bxe4 {[%clk
0:01:14]} 32... Nxe4 {[%clk 0:01:34]} 33. Re1 {[%clk 0:01:12.9]} 33... f5 {[%clk
0:01:32.1]} 34. Kg2 {[%clk 0:01:04.7]} 34... Kf7 {[%clk 0:01:23.2]} 35. Ra1
{[%clk 0:01:01.3]} 35... g5 {[%clk 0:01:22.3]} 36. a3 {[%clk 0:01:01.3]} 36...
b3 {[%clk 0:01:22.2]} 37. cxb3 {[%clk 0:01:00.3]} 37... d3 {[%clk 0:01:22.6]}
38. Rd1 {[%clk 0:00:56.1]} 38... d2 {[%clk 0:01:22.4]} 39. Kf3 {[%clk
0:00:55.7]} 39... Ke6 {[%clk 0:01:21.5]} 40. b4 {[%clk 0:00:55.2]} 40... Ke5
{[%clk 0:01:21.7]} 41. c5 {[%clk 0:00:55.3]} 41... f4 {[%clk 0:01:20.4]} 42. Ke2
{[%clk 0:00:48.4]} 42... g4 {[%clk 0:01:19.6]} 43. a4 {[%clk 0:00:45.1]} 43...
h5 {[%clk 0:01:14.3]} 44. b5 {[%clk 0:00:43.1]} 44... axb5 {[%clk 0:01:15.2]}
45. axb5 {[%clk 0:00:42.5]} 45... h4 {[%clk 0:01:03.8]} 46. b6 {[%clk
0:00:40.7]} 46... Nxc5 {[%clk 0:01:02.8]} 47. Rxd2 {[%clk 0:00:39]} 47... h3
{[%clk 0:00:56.8]} 48. Rd8 {[%clk 0:00:35.6]} 48... g3 {[%clk 0:00:55.5]} 49.
hxg3 {[%clk 0:00:36.5]} 49... fxg3 {[%clk 0:00:56.1]} 50. Kf3 {[%clk 0:00:37.1]}
1-0

[Event "Early-Titled-Tuesday-Blitz-September-12-2023"]
[Site "Chess.com"]
[Date "2023.09.12"]
[Round "9"]
[White "Inepton_Fermion"]
[Black "RamonManon0g"]
[Result "1-0"]
[WhiteElo "2355"]
[BlackElo "2293"]
[TimeControl "180+1"]
[EndTime "9:44:49 PDT"]
[Termination "Inepton_Fermion won by checkmate"]

1. e4 {[%clk 0:03:00.9]} 1... c5 {[%clk 0:02:35.8]} 2. Nf3 {[%clk 0:03:00.6]}
2... d6 {[%clk 0:02:35.8]} 3. d4 {[%clk 0:03:01]} 3... cxd4 {[%clk 0:02:28.9]}
4. Nxd4 {[%clk 0:03:01.9]} 4... Nf6 {[%clk 0:02:25.3]} 5. Nc3 {[%clk 0:03:02.1]}
5... a6 {[%clk 0:02:25.4]} 6. Rg1 {[%clk 0:02:59.8]} 6... e5 {[%clk 0:02:24.9]}
7. Nb3 {[%clk 0:02:59.2]} 7... h5 {[%clk 0:02:22.1]} 8. Bg5 {[%clk 0:02:59.4]}
8... Nbd7 {[%clk 0:02:19]} 9. Qd2 {[%clk 0:02:57.9]} 9... Be7 {[%clk 0:02:15.1]}
10. O-O-O {[%clk 0:02:58.2]} 10... b5 {[%clk 0:02:13.5]} 11. f4 {[%clk
0:02:57.5]} 11... Bb7 {[%clk 0:02:13]} 12. Bd3 {[%clk 0:02:45.3]} 12... O-O
{[%clk 0:02:03.7]} 13. Rde1 {[%clk 0:02:09.7]} 13... b4 {[%clk 0:00:47.6]} 14.
Nd1 {[%clk 0:02:09.9]} 14... a5 {[%clk 0:00:47.9]} 15. Kb1 {[%clk 0:02:02.5]}
15... g6 {[%clk 0:00:45.7]} 16. f5 {[%clk 0:02:00.8]} 16... Kg7 {[%clk
0:00:45.4]} 17. Bh6+ {[%clk 0:01:57.1]} 17... Kh7 {[%clk 0:00:45.6]} 18. Bxf8
{[%clk 0:01:58]} 18... Bxf8 {[%clk 0:00:45]} 19. h3 {[%clk 0:01:48.3]} 19... Bh6
{[%clk 0:00:44.9]} 20. Qf2 {[%clk 0:01:46.4]} 20... a4 {[%clk 0:00:44.2]} 21.
Nc1 {[%clk 0:01:46.1]} 21... Nc5 {[%clk 0:00:44.4]} 22. g4 {[%clk 0:01:44.5]}
22... b3 {[%clk 0:00:36.8]} 23. g5 {[%clk 0:01:42.5]} 23... Bxg5 {[%clk
0:00:32.2]} 24. Rxg5 {[%clk 0:01:42.4]} 24... Nfxe4 {[%clk 0:00:33]} 25. fxg6+
{[%clk 0:01:42.6]} 25... fxg6 {[%clk 0:00:33]} 26. Qf7+ {[%clk 0:01:41.9]} 26...
Kh8 {[%clk 0:00:33.5]} 27. Rxg6 {[%clk 0:01:04.3]} 27... bxc2+ {[%clk
0:00:26.5]} 28. Bxc2 {[%clk 0:00:55.7]} 28... Nd2+ {[%clk 0:00:23.9]} 29. Ka1
{[%clk 0:00:56.1]} 29... Qf8 {[%clk 0:00:14]} 30. Qxf8+ {[%clk 0:00:39.3]} 30...
Rxf8 {[%clk 0:00:14.9]} 31. Reg1 {[%clk 0:00:39.7]} 31... Bf3 {[%clk 0:00:06.2]}
32. Rh6# {[%clk 0:00:37.3]} 1-0

[Event "Early-Titled-Tuesday-Blitz-September-12-2023"]
[Site "Chess.com"]
[Date "2023.09.12"]
[Round "9"]
[White "profedechess93"]
[Black "ChessTankMan"]
[Result "1-0"]
[WhiteElo "2653"]
[BlackElo "2513"]
[TimeControl "180+1"]
[EndTime "9:44:51 PDT"]
[Termination "profedechess93 won by checkmate"]

1. e4 {[%clk 0:03:00.9]} 1... c5 {[%clk 0:02:59.4]} 2. Nf3 {[%clk 0:03:00.7]}
2... e6 {[%clk 0:02:59.7]} 3. d4 {[%clk 0:02:59.9]} 3... cxd4 {[%clk 0:03:00.4]}
4. Nxd4 {[%clk 0:03:00.8]} 4... a6 {[%clk 0:03:00.8]} 5. Nc3 {[%clk 0:03:01.4]}
5... Qc7 {[%clk 0:03:01]} 6. Be2 {[%clk 0:03:01.7]} 6... b5 {[%clk 0:03:00.4]}
7. Bf3 {[%clk 0:03:00]} 7... Bb7 {[%clk 0:03:00.7]} 8. O-O {[%clk 0:02:59.8]}
8... Nc6 {[%clk 0:03:01.3]} 9. Re1 {[%clk 0:02:49.1]} 9... Ne5 {[%clk
0:03:01.3]} 10. Bf4 {[%clk 0:02:25]} 10... d6 {[%clk 0:03:01.3]} 11. Bh5 {[%clk
0:02:19.4]} 11... Qd7 {[%clk 0:02:30.3]} 12. a4 {[%clk 0:01:40.2]} 12... b4
{[%clk 0:02:25.7]} 13. Na2 {[%clk 0:01:40]} 13... Nf6 {[%clk 0:02:20.3]} 14.
Nxb4 {[%clk 0:01:32]} 14... Nxe4 {[%clk 0:01:47.3]} 15. Nd3 {[%clk 0:01:10.6]}
15... Ng6 {[%clk 0:01:20.8]} 16. Bf3 {[%clk 0:00:57.6]} 16... Nc5 {[%clk
0:01:02]} 17. Nxc5 {[%clk 0:00:34.3]} 17... dxc5 {[%clk 0:00:59.4]} 18. Bxb7
{[%clk 0:00:33.8]} 18... Qxb7 {[%clk 0:00:58.9]} 19. Nxe6 {[%clk 0:00:29.6]}
19... fxe6 {[%clk 0:00:55.3]} 20. Rxe6+ {[%clk 0:00:30.1]} 20... Kf7 {[%clk
0:00:49.8]} 21. Qg4 {[%clk 0:00:25.4]} 21... Be7 {[%clk 0:00:12.6]} 22. Rae1
{[%clk 0:00:24.5]} 22... Bf6 {[%clk 0:00:09.4]} 23. Rd6 {[%clk 0:00:20]} 23...
Rad8 {[%clk 0:00:03.6]} 24. Qe6+ {[%clk 0:00:17.4]} 24... Kf8 {[%clk 0:00:04]}
25. Rxd8+ {[%clk 0:00:16.8]} 25... Bxd8 {[%clk 0:00:04.9]} 26. Qe8# {[%clk
0:00:17.3]} 1-0